fUSD/lending_fUSD_20250308
["ID","MTS","AMOUNT","RATE_DAILY","PERIOD"]
[355691018,1741463321003,-325.5916876,0.0002301,120]
[355691019,1741463321046,-500.0,0.00024,120]
[355691020,1741463321080,-2000.0,0.00024135,120]
[355691021,1741463321119,-180.0,0.00025,120]
[355691022,1741463321153,-500.0,0.00025,120]
[355691023,1741463330489,-156.18,0.000139,31]
[355691024,1741463330523,-156.18,0.000139,31]
[355691025,1741463330910,-2479.56,0.00016493,30]
[355691026,1741463330952,-156.18,0.000188,31]
[355691027,1741463330989,-156.18,0.000188,31]
[355691028,1741463331025,-156.18,0.000188,31]
[355691029,1741463331064,-156.18,0.000188,31]
[355691030,1741463331108,-243.80244065,0.0002,30]
[355691031,1741463331144,-600.94276673,0.000209,30]
[355691032,1741463331177,-2479.56,0.00020971,30]
[355691033,1741463331210,-503.0,0.0002197,30]
[355691034,1741463331241,-503.0,0.0002197,30]
[355691035,1741463331272,-503.0,0.0002198,30]
[355691036,1741463331303,-503.0,0.0002198,30]
[355691037,1741463331334,-503.0,0.0002198,30]
[355691038,1741463331364,-507.5,0.0002198,30]
[355691039,1741463331397,-503.0,0.0002199,30]
[355691040,1741463331427,-503.0,0.0002199,30]
[355691041,1741463331461,-503.0,0.0002199,30]
[355691042,1741463331492,-503.0,0.0002199,30]
[355691043,1741463337974,-1439.4216516,0.00023,30]
[355691044,1741463338006,-996.24592193,0.00023111,30]
[355691045,1741463338036,-772.70778595,0.00023111,30]
[355691046,1741463338067,-1700.0,0.00023111,30]
[355691047,1741463338098,-1700.0,0.00023111,30]
[355691048,1741463338128,-800.0,0.00023111,30]
[355691049,1741463338160,-1700.0,0.00023111,30]
[355691050,1741463338190,-800.0,0.00023111,30]
[355691051,1741463338220,-1700.0,0.00023111,30]
[355691052,1741463338251,-800.0,0.00023111,30]
[355691053,1741463338281,-800.0,0.00023111,30]
[355691054,1741463338312,-1700.0,0.00023111,30]
[355691055,1741463338341,-800.0,0.00023111,30]
[355691056,1741463338372,-1700.0,0.00023111,30]
[355691057,1741463338403,-800.0,0.00023111,30]
[355691058,1741463338434,-1700.0,0.00023111,30]
[355691059,1741463338464,-800.0,0.00023111,30]
[355691060,1741463338494,-500.0,0.00023111,30]
[355691061,1741463338526,-500.0,0.00023111,30]
[355691062,1741463338558,-800.0,0.00023111,30]
[355691063,1741463338588,-500.0,0.00023111,30]
[355691064,1741463338621,-1700.0,0.00023111,30]
[355691065,1741463338651,-513.95399,0.00023111,30]
[355691066,1741463338682,-500.0,0.00023111,30]
[355691067,1741463338730,-1700.0,0.00023111,30]
[355691068,1741463338763,-800.0,0.00023111,30]
[355691069,1741463338795,-500.0,0.00023111,30]
[355691070,1741463338828,-554.01825723,0.00023111,30]
[355691071,1741463338861,-1700.0,0.00023111,30]
[355691072,1741463338893,-500.0,0.00023111,30]
[355691073,1741463338925,-800.0,0.00023111,30]
[355691074,1741463338957,-1700.0,0.00023111,30]
[355691075,1741463338990,-500.0,0.00023111,30]
[355691076,1741463339022,-500.0,0.00023111,30]
[355691077,1741463339057,-1700.0,0.00023111,30]
[355691078,1741463339088,-800.0,0.00023111,30]
[355691079,1741463339120,-500.0,0.00023111,30]
[355691080,1741463339151,-800.0,0.00023111,30]
[355691081,1741463339184,-500.0,0.00023111,30]
[355691082,1741463339223,-800.0,0.00023111,30]
[355691083,1741463339256,-1700.0,0.00023111,30]
[355691084,1741463339289,-598.07278961,0.00023111,30]
[355691085,1741463339322,-1437.561622,0.00023111,30]
[355691086,1741463339354,-2067.22280977,0.00023111,30]
[355691087,1741463339387,-500.0,0.00023111,30]
[355691088,1741463339418,-500.0,0.00023111,30]
[355691089,1741463339448,-500.0,0.00023111,30]
[355691090,1741463339680,-500.0,0.00023111,30]
[355691091,1741463339712,-500.0,0.00023111,30]
[355691092,1741463339745,-500.0,0.00023111,30]
[355691093,1741463339781,-773.81913706,0.00023111,30]
[355691094,1741463339813,-500.0,0.00023111,30]
[355691095,1741463339845,-500.0,0.00023111,30]
[355691096,1741463339877,-500.0,0.00023111,30]
[355691097,1741463339911,-500.0,0.00023111,30]
[355691098,1741463339944,-500.0,0.00023111,30]
[355691099,1741463339976,-500.0,0.00023111,30]
[355691100,1741463340010,-500.0,0.00023111,30]
[355691101,1741463340046,-500.0,0.00023111,30]
[355691102,1741463340080,-500.0,0.00023111,30]
[355691103,1741463340114,-500.0,0.00023111,30]
[355691104,1741463340147,-714.70887258,0.00023111,30]
[355691105,1741463340182,-500.0,0.00023111,30]
[355691106,1741463340215,-500.0,0.00023111,30]
[355691107,1741463340248,-500.0,0.00023111,30]
[355691108,1741463340282,-500.0,0.00023111,30]
[355691109,1741463340315,-500.0,0.00023111,30]
[355691110,1741463340348,-500.0,0.00023111,30]
[355691111,1741463340382,-500.0,0.00023111,30]
[355691112,1741463340416,-500.0,0.00023111,30]
[355691113,1741463340447,-500.0,0.00023111,30]
[355691114,1741463340482,-500.0,0.00023111,30]
[355691115,1741463340515,-500.0,0.00023111,30]
[355691116,1741463340549,-500.0,0.00023111,30]
[355691117,1741463340582,-500.0,0.00023111,30]
[355691118,1741463340615,-500.0,0.00023111,30]
[355691119,1741463340646,-500.0,0.00023111,30]
[355691120,1741463340678,-755.0,0.00023111,30]
[355691121,1741463340709,-302.726436,0.00023111,30]
[355691122,1741463340756,-272.502929,0.000232,30]
[355691123,1741463340793,-161.152893,0.000232,30]
[355691124,1741463340827,-160.531274,0.000232,30]
[355691125,1741463340871,-156.18,0.000237,31]
[355691126,1741463340908,-156.18,0.000237,31]
[355691127,1741463340946,-156.18,0.000237,31]
[355691128,1741463340985,-156.18,0.000237,31]
[355691135,1741463348112,-216.0,0.0002493,30]
[355691136,1741463348160,-1736.01,0.00025,30]
[355691137,1741463348193,-2397.00442708,0.00025,30]
[355691138,1741463348227,-1461.00765371,0.00025,60]
[355691139,1741463348259,-1237.34574886,0.00025,30]
[355691140,1741463348289,-3213.85460286,0.00025,60]
[355691141,1741463348321,-200.0,0.00025,39]
[355691142,1741463348350,-500.0,0.00025,60]
[355691143,1741463348381,-515.77117792,0.00025,60]
[355691144,1741463348413,-1650.0,0.00025,50]
[355691145,1741463348444,-44850.77005535,0.00025,30]
[355691148,1741463369424,-160.06562781,0.00025,120]
[355691149,1741463369456,-500.0,0.00025009,120]
[355691150,1741463369489,-2000.0,0.00025477,120]
[355691151,1741463369520,-500.0,0.00025826,120]
[355691152,1741463369569,-500.0,0.00026642,120]
[355691153,1741463369601,-2000.0,0.00026818,120]
[355691154,1741463369633,-800.0,0.00026986,120]
[355691155,1741463369665,-800.0,0.00026986,120]
[355691156,1741463369696,-738.15,0.00026986,120]
[355691157,1741463369728,-1941.65930959,0.0002736,120]
[355691158,1741463369767,-500.0,0.00027459,120]
[355691159,1741463369799,-440.69184377,0.00028,120]
[355691160,1741463369830,-346.82679037,0.00028,120]
[355691161,1741463372204,150.5,0.0002199,30]
[355691162,1741463372336,192.58,0.0002199,120]
[355691163,1741463372669,150.5,0.0002198,30]
[355691164,1741463373147,263.62,0.0002197,30]
[355691165,1741463386283,-2479.56,0.0002545,30]
[355691166,1741463386315,-220.62,0.00025799,30]
[355691167,1741463386346,-272.502929,0.000258,30]
[355691168,1741463386378,-161.152893,0.000258,30]
[355691169,1741463386639,-152.603804,0.000258,30]
[355691170,1741463386673,-160.531274,0.000258,30]
[355691171,1741463386715,-8223.0,0.00025895,30]
[355691172,1741463386749,-10000.0,0.00025895,30]
[355691173,1741463386781,-10000.0,0.00025895,30]
[355691174,1741463386812,-10000.0,0.00025895,30]
[355691175,1741463386847,-1650.0,0.00027,70]
[355691176,1741463404321,1272.44420879,0.00028,120]
[355691177,1741463406052,308.91201831,0.00028,120]
[355691179,1741463420029,156.0,0.00028,120]
[355691180,1741463420613,257.34354548,0.00028,120]
[355691181,1741463421167,170.58785113,0.00028,120]
[355691184,1741463432261,-460.70825107,8.219e-05,2]
[355691185,1741463432315,-316.64750841,8.219e-05,2]
[355691186,1741463432367,-643.65424052,8.219e-05,2]
[355691187,1741463432378,-250.0,8.909e-05,2]
[355691188,1741463432387,-184.77,8.986e-05,2]
[355691189,1741463432398,-155.43281487,8.987e-05,2]
[355691190,1741463432407,-500.0,9.066e-05,2]
[355691191,1741463432417,-838.87,9.075e-05,2]
[355691192,1741463432426,-1000.0,9.095e-05,2]
[355691193,1741463432436,-150.0,9.37e-05,2]
[355691194,1741463432446,-2500.0,9.4e-05,2]
[355691195,1741463432457,-161.30797153,9.473e-05,2]
[355691196,1741463432467,-6611.69820124,9.485e-05,2]
[355691197,1741463432476,-5000.0,9.485e-05,2]
[355691198,1741463432485,-5000.0,9.485e-05,2]
[355691199,1741463432495,-5000.0,9.485e-05,2]
[355691200,1741463432504,-5000.0,9.485e-05,2]
[355691201,1741463432513,-500.0,9.499e-05,2]
[355691202,1741463432523,-500.0,9.499e-05,2]
[355691203,1741463432532,-500.0,9.499e-05,2]
[355691204,1741463432542,-500.0,9.499e-05,2]
[355691205,1741463432552,-500.0,9.499e-05,2]
[355691206,1741463432565,-500.0,9.499e-05,2]
[355691207,1741463432575,-500.0,9.499e-05,2]
[355691208,1741463432585,-500.0,9.499e-05,2]
[355691209,1741463432595,-500.0,9.499e-05,2]
[355691210,1741463432605,-500.0,9.499e-05,2]
[355691211,1741463432615,-500.0,9.499e-05,2]
[355691212,1741463432624,-500.0,9.499e-05,2]
[355691213,1741463432634,-500.0,9.499e-05,2]
[355691214,1741463432645,-500.0,9.499e-05,2]
[355691215,1741463432654,-500.0,9.499e-05,2]
[355691216,1741463432664,-500.0,9.499e-05,2]
[355691217,1741463432673,-500.0,9.499e-05,2]
[355691218,1741463432686,-500.0,9.499e-05,2]
[355691219,1741463432695,-500.0,9.499e-05,2]
[355691220,1741463432705,-639.79974737,9.499e-05,2]
[355691221,1741463432714,-500.0,9.499e-05,2]
[355691222,1741463432723,-500.0,9.499e-05,2]
[355691223,1741463432734,-500.0,9.499e-05,2]
[355691224,1741463432744,-500.0,9.499e-05,2]
[355691225,1741463432754,-500.0,9.499e-05,2]
[355691226,1741463432763,-500.0,9.499e-05,2]
[355691227,1741463432772,-500.0,9.499e-05,2]
[355691228,1741463432782,-203.97,9.499e-05,2]
[355691229,1741463432791,-500.0,9.499e-05,2]
[355691230,1741463432801,-500.0,9.499e-05,2]
[355691231,1741463432811,-500.0,9.499e-05,2]
[355691232,1741463432821,-500.0,9.499e-05,2]
[355691233,1741463432835,-500.0,9.499e-05,2]
[355691234,1741463432845,-500.0,9.499e-05,2]
[355691235,1741463432854,-500.0,9.499e-05,2]
[355691236,1741463432864,-500.0,9.499e-05,2]
[355691237,1741463432874,-500.0,9.499e-05,2]
[355691238,1741463432883,-500.0,9.499e-05,2]
[355691239,1741463432892,-500.0,9.499e-05,2]
[355691240,1741463432902,-500.0,9.499e-05,2]
[355691241,1741463432912,-500.0,9.499e-05,2]
[355691242,1741463432921,-500.0,9.499e-05,2]
[355691243,1741463432931,-500.0,9.499e-05,2]
[355691244,1741463432941,-519.47,9.499e-05,2]
[355691245,1741463432951,-500.0,9.499e-05,2]
[355691246,1741463432964,-500.0,9.499e-05,2]
[355691247,1741463432974,-500.0,9.499e-05,2]
[355691248,1741463432984,-597.69,9.499e-05,2]
[355691249,1741463432994,-500.0,9.499e-05,2]
[355691250,1741463433004,-500.0,9.499e-05,2]
[355691251,1741463433014,-191.26872217,9.499e-05,2]
[355691252,1741463433023,-500.0,9.499e-05,2]
[355691253,1741463433033,-500.0,9.499e-05,2]
[355691254,1741463433043,-500.0,9.499e-05,2]
[355691255,1741463433052,-500.0,9.499e-05,2]
[355691256,1741463433062,-500.0,9.499e-05,2]
[355691257,1741463433072,-500.0,9.499e-05,2]
[355691258,1741463433082,-500.0,9.499e-05,2]
[355691259,1741463433092,-500.0,9.499e-05,2]
[355691260,1741463433101,-500.0,9.499e-05,2]
[355691261,1741463433112,-500.0,9.499e-05,2]
[355691262,1741463433121,-857.26,9.499e-05,2]
[355691263,1741463433131,-500.0,9.499e-05,2]
[355691264,1741463433141,-500.0,9.499e-05,2]
[355691265,1741463433151,-500.0,9.499e-05,2]
[355691266,1741463433161,-1789.28,9.499e-05,2]
[355691267,1741463433170,-500.0,9.499e-05,2]
[355691268,1741463433187,-500.0,9.499e-05,2]
[355691269,1741463433201,-507.91,9.499e-05,2]
[355691270,1741463433214,-1111.14,9.499e-05,2]
[355691271,1741463433226,-500.0,9.499e-05,2]
[355691272,1741463433237,-500.0,9.499e-05,2]
[355691273,1741463433247,-500.0,9.499e-05,2]
[355691274,1741463433259,-500.0,9.499e-05,2]
[355691275,1741463433271,-500.0,9.499e-05,2]
[355691276,1741463433283,-997.95,9.499e-05,2]
[355691277,1741463433295,-437.44618132,9.499e-05,2]
[355691278,1741463433306,-500.0,9.499e-05,2]
[355691279,1741463433318,-1191.58,9.499e-05,2]
[355691280,1741463433330,-500.0,9.499e-05,2]
[355691281,1741463433343,-155.43281487,9.499e-05,2]
[355691282,1741463433356,-500.0,9.499e-05,2]
[355691283,1741463433368,-500.0,9.499e-05,2]
[355691284,1741463433380,-640.74,9.499e-05,2]
[355691285,1741463433391,-200.68901673,9.499e-05,2]
[355691286,1741463433402,-500.0,9.499e-05,2]
[355691287,1741463433413,-829.96,9.499e-05,2]
[355691288,1741463433424,-500.0,9.499e-05,2]
[355691289,1741463433436,-500.0,9.499e-05,2]
[355691290,1741463433448,-2091.53,9.499e-05,2]
[355691291,1741463433462,-566.42,9.499e-05,2]
[355691292,1741463433474,-626.04,9.499e-05,2]
[355691293,1741463433487,-562.46,9.499e-05,2]
[355691294,1741463433500,-1073.0,9.499e-05,2]
[355691295,1741463433513,-500.0,9.499e-05,2]
[355691296,1741463433526,-1586.39,9.499e-05,2]
[355691297,1741463433538,-676.72,9.499e-05,2]
[355691298,1741463433552,-500.0,9.499e-05,2]
[355691299,1741463433566,-500.0,9.499e-05,2]
[355691300,1741463433578,-500.0,9.499e-05,2]
[355691301,1741463433592,-1848.45,9.499e-05,2]
[355691302,1741463433604,-872.86,9.499e-05,2]
[355691303,1741463433616,-513.69,9.499e-05,2]
[355691304,1741463433628,-500.0,9.499e-05,2]
[355691305,1741463433640,-749.8,9.499e-05,2]
[355691306,1741463433653,-500.0,9.499e-05,2]
[355691307,1741463433663,-500.0,9.499e-05,2]
[355691308,1741463433675,-500.0,9.499e-05,2]
[355691309,1741463433687,-500.0,9.499e-05,2]
[355691310,1741463433699,-500.0,9.499e-05,2]
[355691311,1741463433714,-1944.24,9.499e-05,2]
[355691312,1741463433726,-3225.52,9.499e-05,2]
[355691313,1741463433738,-500.0,9.499e-05,2]
[355691314,1741463433750,-500.0,9.499e-05,2]
[355691315,1741463433762,-500.0,9.499e-05,2]
[355691316,1741463433772,-1868.96,9.499e-05,2]
[355691317,1741463433784,-500.0,9.499e-05,2]
[355691318,1741463433795,-500.0,9.499e-05,2]
[355691319,1741463433806,-774.43,9.499e-05,2]
[355691320,1741463433819,-500.0,9.499e-05,2]
[355691321,1741463433833,-852.35,9.499e-05,2]
[355691322,1741463433846,-429.22737901,9.499e-05,2]
[355691323,1741463433857,-500.0,9.499e-05,2]
[355691324,1741463433867,-500.0,9.499e-05,2]
[355691325,1741463433878,-649.83,9.499e-05,2]
[355691326,1741463433888,-613.43,9.499e-05,2]
[355691327,1741463433900,-500.0,9.499e-05,2]
[355691328,1741463433912,-500.0,9.499e-05,2]
[355691329,1741463433924,-659.41,9.499e-05,2]
[355691330,1741463433938,-500.0,9.499e-05,2]
[355691331,1741463433949,-835.05,9.499e-05,2]
[355691332,1741463433961,-1166.44,9.499e-05,2]
[355691333,1741463433972,-500.0,9.499e-05,2]
[355691334,1741463433984,-817.74,9.499e-05,2]
[355691335,1741463433995,-923.3,9.499e-05,2]
[355691336,1741463434006,-964.12,9.499e-05,2]
[355691337,1741463434019,-500.0,9.499e-05,2]
[355691338,1741463434030,-1017.0,9.499e-05,2]
[355691339,1741463434042,-500.0,9.499e-05,2]
[355691340,1741463434053,-500.0,9.499e-05,2]
[355691341,1741463434064,-500.0,9.499e-05,2]
[355691342,1741463434076,-699.2,9.499e-05,2]
[355691343,1741463434087,-500.0,9.499e-05,2]
[355691344,1741463434104,-2208.01,9.499e-05,2]
[355691345,1741463434116,-500.0,9.499e-05,2]
[355691346,1741463434127,-500.0,9.499e-05,2]
[355691347,1741463434139,-558.37,9.499e-05,2]
[355691348,1741463434150,-1551.58,9.499e-05,2]
[355691349,1741463434162,-268.07773555,9.499e-05,2]
[355691350,1741463434173,-500.0,9.499e-05,2]
[355691351,1741463434185,-500.0,9.499e-05,2]
[355691352,1741463434197,-500.0,9.499e-05,2]
[355691353,1741463434208,-870.76,9.499e-05,2]
[355691354,1741463434221,-1220.41,9.499e-05,2]
[355691355,1741463434232,-500.0,9.499e-05,2]
[355691356,1741463434244,-500.0,9.499e-05,2]
[355691357,1741463434256,-500.0,9.499e-05,2]
[355691358,1741463434267,-500.0,9.499e-05,2]
[355691359,1741463434279,-1696.03,9.499e-05,2]
[355691360,1741463434290,-500.0,9.499e-05,2]
[355691361,1741463434303,-500.0,9.499e-05,2]
[355691362,1741463434314,-1591.23,9.499e-05,2]
[355691363,1741463434326,-546.36,9.499e-05,2]
[355691364,1741463434338,-1043.62,9.499e-05,2]
[355691365,1741463434349,-811.76,9.499e-05,2]
[355691366,1741463434361,-500.0,9.499e-05,2]
[355691367,1741463434371,-1149.03,9.499e-05,2]
[355691368,1741463434382,-2723.93,9.499e-05,2]
[355691369,1741463434393,-500.0,9.499e-05,2]
[355691370,1741463434405,-500.0,9.499e-05,2]
[355691371,1741463434416,-629.93,9.499e-05,2]
[355691372,1741463434428,-500.0,9.499e-05,2]
[355691373,1741463434439,-500.0,9.499e-05,2]
[355691374,1741463434449,-500.0,9.499e-05,2]
[355691375,1741463434462,-505.07,9.499e-05,2]
[355691376,1741463434473,-931.84,9.499e-05,2]
[355691377,1741463434484,-500.0,9.499e-05,2]
[355691378,1741463434495,-500.0,9.499e-05,2]
[355691379,1741463434506,-500.0,9.499e-05,2]
[355691380,1741463434516,-500.0,9.499e-05,2]
[355691381,1741463434527,-563.24,9.499e-05,2]
[355691382,1741463434537,-601.95,9.499e-05,2]
[355691383,1741463434548,-180.43258447,9.499e-05,2]
[355691384,1741463434561,-500.0,9.499e-05,2]
[355691385,1741463434572,-500.0,9.499e-05,2]
[355691386,1741463434583,-500.0,9.499e-05,2]
[355691387,1741463434594,-500.0,9.499e-05,2]
[355691388,1741463434607,-807.81,9.499e-05,2]
[355691389,1741463434618,-587.38,9.499e-05,2]
[355691390,1741463434629,-660.42,9.499e-05,2]
[355691391,1741463434640,-500.0,9.499e-05,2]
[355691392,1741463434651,-219.912225,9.499e-05,2]
[355691393,1741463434663,-500.0,9.499e-05,2]
[355691394,1741463434674,-500.0,9.499e-05,2]
[355691395,1741463434685,-500.0,9.499e-05,2]
[355691396,1741463434696,-164.50948127,9.499e-05,2]
[355691397,1741463434708,-242132.62168648,9.5e-05,2]
[355691398,1741463434719,-150.0,9.562e-05,7]
[355691399,1741463434729,-3185.34,9.67e-05,2]
[355691400,1741463434741,-21025.07,9.67e-05,2]
[355691401,1741463434752,-1000.0,9.699e-05,2]
[355691402,1741463434765,-162.25770135,9.737e-05,2]
[355691403,1741463434776,-500.0,9.773e-05,2]
[355691404,1741463434787,-500.0,9.773e-05,2]
[355691405,1741463434797,-500.0,9.773e-05,2]
[355691406,1741463434809,-496.39294969,9.773e-05,2]
[355691407,1741463434820,-500.0,9.773e-05,2]
[355691408,1741463434831,-500.0,9.773e-05,2]
[355691409,1741463434843,-500.0,9.773e-05,2]
[355691410,1741463434854,-500.0,9.773e-05,2]
[355691411,1741463434866,-500.0,9.773e-05,2]
[355691412,1741463434878,-500.0,9.773e-05,2]
[355691413,1741463434890,-500.0,9.773e-05,2]
[355691414,1741463434901,-500.0,9.773e-05,2]
[355691415,1741463434912,-500.0,9.773e-05,2]
[355691416,1741463434923,-500.0,9.773e-05,2]
[355691417,1741463434934,-500.0,9.773e-05,2]
[355691418,1741463434946,-500.0,9.773e-05,2]
[355691419,1741463434958,-500.0,9.773e-05,2]
[355691420,1741463434970,-432.18100131,9.773e-05,2]
[355691421,1741463434982,-500.0,9.773e-05,2]
[355691422,1741463434993,-500.0,9.773e-05,2]
[355691423,1741463435004,-500.0,9.773e-05,2]
[355691424,1741463435015,-500.0,9.773e-05,2]
[355691425,1741463435027,-588.4252346,9.773e-05,2]
[355691426,1741463435039,-500.0,9.773e-05,2]
[355691427,1741463435051,-519.47,9.773e-05,2]
[355691428,1741463435062,-500.0,9.773e-05,2]
[355691430,1741463435074,-597.69,9.773e-05,2]
[355691431,1741463435085,-500.0,9.773e-05,2]
[355691432,1741463435096,-500.0,9.773e-05,2]
[355691433,1741463435107,-500.0,9.773e-05,2]
[355691434,1741463435118,-500.0,9.773e-05,2]
[355691435,1741463435129,-500.0,9.773e-05,2]
[355691436,1741463435140,-500.0,9.773e-05,2]
[355691437,1741463435151,-500.0,9.773e-05,2]
[355691438,1741463435163,-500.0,9.773e-05,2]
[355691439,1741463435174,-500.0,9.773e-05,2]
[355691440,1741463435187,-857.26,9.773e-05,2]
[355691441,1741463435197,-500.0,9.773e-05,2]
[355691442,1741463435210,-500.0,9.773e-05,2]
[355691443,1741463435222,-500.0,9.773e-05,2]
[355691444,1741463435233,-1789.28,9.773e-05,2]
[355691445,1741463435244,-507.91,9.773e-05,2]
[355691446,1741463435255,-1111.14,9.773e-05,2]
[355691447,1741463435266,-500.0,9.773e-05,2]
[355691448,1741463435277,-500.0,9.773e-05,2]
[355691449,1741463435288,-500.0,9.773e-05,2]
[355691450,1741463435299,-500.0,9.773e-05,2]
[355691451,1741463435310,-500.0,9.773e-05,2]
[355691452,1741463435321,-997.95,9.773e-05,2]
[355691453,1741463435332,-500.0,9.773e-05,2]
[355691454,1741463435343,-500.0,9.773e-05,2]
[355691455,1741463435354,-1191.58,9.773e-05,2]
[355691456,1741463435365,-500.0,9.773e-05,2]
[355691457,1741463435376,-500.0,9.773e-05,2]
[355691458,1741463435387,-640.74,9.773e-05,2]
[355691459,1741463435398,-500.0,9.773e-05,2]
[355691460,1741463435409,-829.96,9.773e-05,2]
[355691461,1741463435420,-500.0,9.773e-05,2]
[355691462,1741463435431,-2091.53,9.773e-05,2]
[355691463,1741463435441,-566.42,9.773e-05,2]
[355691464,1741463435452,-626.04,9.773e-05,2]
[355691465,1741463435463,-562.46,9.773e-05,2]
[355691466,1741463435474,-1073.0,9.773e-05,2]
[355691467,1741463435485,-500.0,9.773e-05,2]
[355691468,1741463435497,-1586.39,9.773e-05,2]
[355691469,1741463435507,-676.72,9.773e-05,2]
[355691470,1741463435518,-179.6029624,9.773e-05,2]
[355691471,1741463435530,-500.0,9.773e-05,2]
[355691472,1741463435541,-1848.45,9.773e-05,2]
[355691473,1741463435551,-872.86,9.773e-05,2]
[355691474,1741463435564,-513.69,9.773e-05,2]
[355691475,1741463435577,-500.0,9.773e-05,2]
[355691476,1741463435587,-749.8,9.773e-05,2]
[355691477,1741463435598,-500.0,9.773e-05,2]
[355691478,1741463435611,-500.0,9.773e-05,2]
[355691479,1741463435621,-1944.24,9.773e-05,2]
[355691480,1741463435632,-3225.52,9.773e-05,2]
[355691481,1741463435645,-500.0,9.773e-05,2]
[355691482,1741463435656,-500.0,9.773e-05,2]
[355691483,1741463435667,-500.0,9.773e-05,2]
[355691484,1741463435678,-774.43,9.773e-05,2]
[355691485,1741463435689,-500.0,9.773e-05,2]
[355691486,1741463435699,-852.35,9.773e-05,2]
[355691487,1741463435710,-500.0,9.773e-05,2]
[355691488,1741463435722,-500.0,9.773e-05,2]
[355691489,1741463435733,-649.83,9.773e-05,2]
[355691490,1741463435744,-613.43,9.773e-05,2]
[355691491,1741463435754,-500.0,9.773e-05,2]
[355691492,1741463435765,-500.0,9.773e-05,2]
[355691493,1741463435776,-659.41,9.773e-05,2]
[355691494,1741463435786,-571.19645468,9.773e-05,2]
[355691495,1741463435797,-835.05,9.773e-05,2]
[355691496,1741463435808,-500.0,9.773e-05,2]
[355691497,1741463435819,-1166.44,9.773e-05,2]
[355691498,1741463435829,-817.74,9.773e-05,2]
[355691499,1741463435841,-923.3,9.773e-05,2]
[355691500,1741463435852,-964.12,9.773e-05,2]
[355691501,1741463435863,-1017.0,9.773e-05,2]
[355691502,1741463435873,-500.0,9.773e-05,2]
[355691503,1741463435885,-500.0,9.773e-05,2]
[355691504,1741463435895,-500.0,9.773e-05,2]
[355691505,1741463435906,-699.2,9.773e-05,2]
[355691506,1741463435917,-500.0,9.773e-05,2]
[355691507,1741463435929,-2208.01,9.773e-05,2]
[355691508,1741463435940,-219.91546735,9.773e-05,2]
[355691509,1741463436280,-500.0,9.773e-05,2]
[355691510,1741463436305,-558.37,9.773e-05,2]
[355691511,1741463436315,-1551.58,9.773e-05,2]
[355691512,1741463436324,-500.0,9.773e-05,2]
[355691513,1741463436334,-500.0,9.773e-05,2]
[355691514,1741463436343,-500.0,9.773e-05,2]
[355691515,1741463436353,-870.76,9.773e-05,2]
[355691516,1741463436363,-1220.41,9.773e-05,2]
[355691517,1741463436373,-500.0,9.773e-05,2]
[355691518,1741463436382,-500.0,9.773e-05,2]
[355691519,1741463436392,-500.0,9.773e-05,2]
[355691520,1741463436402,-1696.03,9.773e-05,2]
[355691521,1741463436411,-500.0,9.773e-05,2]
[355691522,1741463436421,-500.0,9.773e-05,2]
[355691523,1741463436431,-1591.23,9.773e-05,2]
[355691524,1741463436441,-546.36,9.773e-05,2]
[355691525,1741463436450,-1043.62,9.773e-05,2]
[355691526,1741463436461,-811.76,9.773e-05,2]
[355691527,1741463436470,-500.0,9.773e-05,2]
[355691528,1741463436480,-1149.03,9.773e-05,2]
[355691529,1741463436490,-2723.93,9.773e-05,2]